bitfinex-derivatives/quotes_SOLF0:USTF0_20250904
["timestamp","ask_amount","ask_price","bid_price","bid_amount"]
[1756996377065,41.68,206.2,206.02,7.75]
[1756996377570,3.58,206.19,206.02,7.75]
[1756996377767,41.68,206.2,206.02,7.75]
[1756996377958,3.58,206.19,206.02,7.75]
[1756996378159,3.58,206.19,206.09,0.0341496]
[1756996378662,54.82,206.19,206.09,0.0341496]
[1756996378858,3.58,206.19,206.09,0.0341496]
[1756996382169,3.58,206.15,206.09,0.0341496]
[1756996382770,7.71259342,206.12,205.97,7.75]
[1756996382962,3.55,206.1,205.97,7.75]
[1756996383274,123.08,206.11,205.97,7.75]
[1756996383467,3.55,206.1,205.97,7.75]
[1756996383867,0.03364831,206.06,205.97,7.75]
[1756996384375,0.03364831,206.06,205.99,7.75]
[1756996388467,0.03364831,206.06,206.02,7.71259342]
[1756996388668,0.03364831,206.06,206.03,7.75]
[1756996388873,3.55,206.15,206.03,7.75]
[1756996390072,3.55,206.15,206.07,0.03175138]
[1756996393671,11.26259342,206.15,206.07,0.03175138]
[1756996394173,16.64046888,206.15,206.07,0.03175138]
[1756996394377,126.59,206.15,206.07,0.03175138]
[1756996395376,3.55,206.15,206.07,0.03175138]
[1756996397783,123.02,206.14,206.07,0.03175138]
[1756996398177,3.59,206.13,206.07,0.03175138]
[1756996399179,3.59,206.11,206.07,0.03175138]
[1756996399373,3.59,206.09,206.07,0.03175138]
[1756996399580,76.94,206.1,206.07,0.03175138]
[1756996399779,77.42,206.1,206.07,0.03175138]
[1756996400279,0.48,206.09,205.97,7.88]
[1756996400479,14.56,206.05,205.83,4.05688679]
[1756996400686,3.56,206.07,205.82,7.88]
[1756996400687,3.56,205.97,205.82,7.88]
[1756996400879,7.71259342,205.94,205.82,7.88]
[1756996401079,3.56,205.93,205.82,7.88]
[1756996401479,0.03303184,205.9,205.82,7.88]
[1756996401679,7.47736115,205.89,205.82,7.88]
[1756996401879,3.83376525,205.88,205.82,7.88]
[1756996402081,3.83376525,205.87,205.74,7.88]
[1756996402281,3.83376525,205.87,205.73,8.72]
[1756996402282,3.83376525,205.86,205.77,7.88]
[1756996402479,3.56,205.93,205.77,7.88]
[1756996402679,3.83040088,205.92,205.77,7.88]
[1756996402880,3.83040088,205.91,205.8,7.71259342]
[1756996403185,124.0,205.96,205.82,7.88]
[1756996403382,3.68516079,205.95,205.82,7.88]
[1756996403581,3.68516079,205.94,205.82,7.88]
[1756996403885,3.68516079,205.93,205.82,7.88]
[1756996404085,3.68516079,205.92,205.86,0.03560449]
[1756996404385,3.56,205.97,205.86,7.91560449]
[1756996404386,189.18,205.97,205.86,7.91560449]
[1756996404687,7.32410194,205.96,205.86,7.91560449]
[1756996404880,3.68544048,205.95,205.86,7.91560449]
[1756996405074,3.68544048,205.94,205.86,7.91560449]
[1756996405279,3.68544048,205.93,205.86,7.91560449]
[1756996405483,3.56,205.97,205.86,7.91560449]
[1756996405684,7.33138403,205.96,205.86,7.91560449]
[1756996405885,3.68909979,205.95,205.86,7.91560449]
[1756996406186,3.68909979,205.94,205.86,7.91560449]
[1756996406489,3.68909979,205.93,205.86,7.91560449]
[1756996406682,3.56,205.97,205.86,7.91560449]
[1756996406879,7.33535563,205.96,205.86,7.91560449]
[1756996407083,3.69117133,205.95,205.86,7.91560449]
[1756996407283,3.69117133,205.94,205.86,7.91560449]
[1756996407481,3.69117133,205.93,205.86,7.91560449]
[1756996407683,3.56,205.97,205.86,7.91560449]
[1756996407985,7.33807369,205.96,205.86,7.91560449]
[1756996408183,3.56,205.97,205.86,12.28620449]
[1756996408184,3.69245983,205.95,205.86,12.28620449]
[1756996408388,247.62548651,206.01,205.87,7.88]
[1756996408683,7.3411156,206.0,205.87,7.88]
[1756996408878,7.3411156,205.99,205.87,7.88]
[1756996409078,7.3411156,205.98,205.92,0.03626701]
[1756996409386,7.3411156,205.97,205.92,7.91626701]
[1756996409587,3.69397852,205.96,205.92,7.91626701]
[1756996409793,3.69397852,205.95,205.92,7.91626701]
[1756996409985,185.64548651,206.01,205.92,0.03626701]
[1756996410187,10.94365379,206.0,205.92,0.03626701]
[1756996410491,3.6,205.98,205.92,0.03626701]
[1756996410784,185.64548651,206.01,205.92,0.03626701]
[1756996410785,7.34365379,205.97,205.92,0.03626701]
[1756996410983,130.40365379,205.96,205.92,0.03626701]
[1756996411184,3.6,205.94,205.92,0.03626701]
[1756996411388,7.34365379,205.93,205.92,0.03626701]
[1756996411779,123.06,205.98,205.92,0.03626701]
[1756996412886,3.6,205.97,205.92,0.03626701]
[1756996413285,123.06,205.98,205.92,0.03626701]
[1756996413486,126.66,205.98,205.92,0.03626701]
[1756996414092,3.6,205.98,205.92,0.03626701]
[1756996414290,123.06,205.99,205.92,0.03626701]
[1756996414494,3.6,205.98,205.92,0.03626701]
[1756996416184,123.06,205.97,205.92,0.03626701]
[1756996416392,123.06,206.0,205.92,0.03626701]
[1756996418595,185.64548651,206.01,205.92,0.03626701]
[1756996418889,308.70548651,206.01,205.93,7.88]
[1756996419094,185.64548651,206.01,205.93,7.88]
[1756996421097,308.70548651,206.01,205.93,7.88]
[1756996422497,185.64548651,206.01,205.93,7.88]
[1756996422691,312.6,206.04,205.93,7.88]
[1756996422896,435.64,206.04,205.93,7.88]
[1756996423292,3.58,206.03,205.96,0.036297]
[1756996424800,123.04,206.02,205.96,0.036297]
[1756996426095,3.58,206.01,205.96,0.036297]
[1756996426600,123.04,206.02,205.96,0.036297]
[1756996426896,3.58,206.01,205.96,0.036297]
[1756996427700,4.75650627,205.99,205.8,7.75]
[1756996427891,4.75650627,205.99,205.81,7.75]
[1756996428093,4.75650627,205.96,205.81,7.75]
[1756996428296,55.94,205.95,205.81,7.75]
[1756996428994,0.03725693,205.9,205.81,7.75]
[1756996429702,0.03725693,205.9,205.77,312.78]
[1756996429703,0.03725693,205.9,205.82,4.75650627]
[1756996429900,0.03725693,205.9,205.83,7.75]
[1756996430098,9.04,205.95,205.83,7.75]
[1756996430301,0.03459971,205.89,205.83,7.75]
[1756996431303,0.03459971,205.89,205.83,8.23]
[1756996431502,0.03459971,205.89,205.84,4.3711]
[1756996431698,0.03459971,205.89,205.85,12.50650627]
[1756996431902,18.4,205.99,205.86,4.3706]
[1756996432102,18.4,205.99,205.87,7.75]
[1756996433097,18.4,205.99,205.91,0.03215043]
[1756996435001,3.58,205.98,205.91,0.03215043]
[1756996437300,126.6,205.98,205.91,0.03215043]
[1756996440205,131.97787546,205.98,205.91,0.03215043]
[1756996442204,3.58,205.96,205.91,0.03215043]
[1756996442708,8.95787546,205.97,205.91,0.03215043]
[1756996444209,5.37787546,205.97,205.91,0.03215043]
[1756996444402,5.37787546,205.99,205.92,7.75]
[1756996445111,5.37787546,206.01,205.92,7.75]
[1756996445408,5.37787546,206.05,205.95,7.75]
[1756996445609,131.93787546,206.06,205.95,7.75]
[1756996446210,131.93787546,206.06,205.98,0.03430118]
[1756996446411,3.58,206.06,205.98,0.03430118]
[1756996447307,3.58,206.06,205.98,7.78430118]
[1756996447699,5.37787546,206.09,205.98,7.78430118]
[1756996448304,320.87567145,206.1,205.98,12.15230118]
[1756996448610,320.87567145,206.1,205.98,4.40230118]
[1756996448807,320.87567145,206.1,205.99,7.75]
[1756996449606,320.87567145,206.1,206.02,0.03271185]
[1756996450700,5.37787546,206.09,206.02,0.03271185]
[1756996450905,3.58,206.08,206.02,0.03271185]
[1756996451803,188.95779599,206.1,206.02,0.03271185]
[1756996452008,188.95779599,206.1,206.03,7.75]
[1756996452911,3.58,206.12,206.03,7.75]
[1756996453713,3.58,206.12,206.04,4.75650627]
[1756996457516,3.58,206.12,206.03,7.75]
[1756996458211,122.92,206.15,206.03,7.75]
[1756996458421,122.92,206.15,206.02,4.78921812]
[1756996458422,3.59,206.16,206.08,4.75650627]
[1756996459516,3.59,206.16,206.12,1.89815884]
[1756996459913,5.48815884,206.18,206.12,1.89815884]
[1756996460115,5.48815884,206.18,206.12,1.92973183]
[1756996460317,3.59,206.18,206.12,1.92973183]
[1756996461611,3.59,206.18,206.12,0.03157299]
[1756996472221,127.56503299,206.2,206.12,0.03157299]
[1756996472222,3.59,206.16,206.12,0.03157299]
[1756996472722,3.59,206.13,206.12,0.03157299]
[1756996472924,126.35,206.13,206.12,0.03157299]
[1756996474423,3.59,206.13,206.12,0.03157299]
[1756996474619,126.35,206.13,206.12,0.03157299]
[1756996478824,122.74,206.14,206.12,0.03157299]
[1756996479425,3.59,206.18,206.12,0.03157299]
[1756996479624,122.74,206.17,206.12,0.03157299]
[1756996479823,3.59,206.13,206.12,0.03157299]
[1756996480027,3.59,206.12,205.98,4.74503299]
[1756996480326,3.59,206.1,205.98,7.46]
[1756996481230,0.03171823,206.06,205.98,7.46]
[1756996482032,0.03171823,206.06,206.0,7.46]
[1756996482229,0.03171823,206.06,206.01,7.55]
[1756996483029,0.03171823,206.06,206.0,4.74503299]
[1756996483230,0.03171823,206.06,206.01,7.55]
[1756996483622,0.03171823,206.06,206.0,4.74503299]
[1756996483926,0.03171823,206.06,206.01,7.55]
[1756996484128,0.03171823,206.06,206.0,7.55]
[1756996486233,0.03171823,206.06,205.94,7.55]
[1756996486234,3.62171823,206.06,205.94,7.55]
[1756996487625,3.62171823,206.06,205.94,11.9188]
[1756996487829,3.62171823,206.06,205.95,7.55]
[1756996488235,3.59,206.06,205.95,7.55]
[1756996488535,0.03520583,206.03,205.95,7.55]
[1756996489745,3.62520583,206.03,205.95,7.55]
[1756996491439,0.03520583,206.03,205.95,7.55]
[1756996493540,0.03520583,206.03,205.98,7.55]
[1756996493835,0.03520583,206.03,205.98,130.27]
[1756996494037,0.03520583,206.03,205.99,7.55]
[1756996494340,0.03520583,206.03,205.95,7.72120675]
[1756996494536,0.03520583,206.03,205.96,7.55]
[1756996498036,0.03520583,206.03,205.96,130.25]
[1756996500346,0.03520583,206.03,205.97,7.55]
[1756996501848,0.03520583,206.03,205.96,122.7]
[1756996501849,0.03520583,206.03,206.0,7.55]
[1756996502050,0.03520583,206.03,206.02,7.55]
[1756996504153,3.59,206.13,206.02,7.55]
[1756996505050,3.63,206.16,206.04,7.55]
[1756996505456,9.00787546,206.17,206.08,0.03138851]
[1756996505653,5.37787546,206.16,206.08,0.03138851]
[1756996505955,3.63,206.15,206.08,0.03138851]
[1756996507152,9.00787546,206.15,206.08,0.03138851]
[1756996509952,3.63,206.15,206.08,0.03138851]
[1756996510356,9.00787546,206.15,206.08,0.03138851]
[1756996510955,3.63,206.15,206.08,0.03138851]
[1756996514858,3.64,206.19,206.09,10.5368806]
[1756996515461,3.64,206.19,206.12,2.99745994]
[1756996515962,3.64,206.19,206.12,10.56745994]
[1756996516353,5.37787546,206.22,206.12,10.56745994]
[1756996516560,9.01787546,206.23,206.12,10.56745994]
[1756996517560,3.64,206.23,206.12,7.60057934]
[1756996518354,188.9601858,206.24,206.12,7.60057934]
[1756996518755,3.62,206.22,206.12,7.60057934]
[1756996519062,3.62,206.21,206.12,7.60057934]
[1756996519260,124.0,206.21,206.12,0.03057934]
[1756996519460,3.62,206.2,206.12,0.03057934]
[1756996519860,127.93787546,206.19,206.12,0.03057934]
[1756996520061,3.62,206.18,206.12,0.03057934]
[1756996523261,122.56,206.21,206.12,0.03057934]
[1756996523262,3.62,206.23,206.13,7.57]
[1756996524266,3.62,206.23,206.16,0.0364169]
[1756996530870,183.58231034,206.24,206.17,7.57]
[1756996531072,3.62,206.26,206.17,7.57]
[1756996534680,3.62,206.32,206.17,7.57]
[1756996534976,41.16,206.32,206.17,7.57]
[1756996535374,41.16,206.32,206.23,7.57]
[1756996535579,3.62,206.32,206.23,7.57]
[1756996536076,122.44,206.35,206.23,7.57]
[1756996536780,122.44,206.35,206.27,7.60571802]
[1756996537575,3.62,206.38,206.27,7.60571802]
[1756996539782,124.0,206.41,206.27,7.60571802]
[1756996540177,124.0,206.41,206.27,7.57]
[1756996540378,124.0,206.41,206.32,0.03507409]
[1756996540586,3.62,206.4,206.32,0.03507409]
[1756996547286,11.32852088,206.4,206.32,0.03507409]
[1756996547487,3.62,206.4,206.32,0.03507409]
[1756996547688,122.32,206.39,206.32,0.03507409]
[1756996547982,3.62,206.4,206.32,0.03507409]
[1756996548187,3.62,206.4,206.32,7.82507409]
[1756996549687,122.3,206.43,206.32,7.82507409]
[1756996549877,3.6,206.42,206.32,0.03507409]
[1756996550483,11.30852088,206.42,206.32,0.03507409]
[1756996551492,4.7385967,206.38,206.32,0.03507409]
[1756996551790,3.6,206.36,206.32,0.03507409]
[1756996551988,3.6,206.33,206.21,7.79]
[1756996552889,3.6,206.33,206.23,7.79]
[1756996553293,0.03486241,206.29,206.23,7.79]
[1756996558489,0.03486241,206.29,206.24,4.7385967]
[1756996559093,0.03486241,206.29,206.25,7.79]
[1756996559493,0.03486241,206.29,206.28,9.68452866]
[1756996559694,1.89452866,206.38,206.28,9.68452866]
[1756996559890,5.46452866,206.39,206.32,1.89452866]
[1756996560597,5.46452866,206.39,206.31,9.68452866]
[1756996560989,5.46452866,206.39,206.33,0.03458609]
[1756996561590,3.57,206.39,206.33,0.03458609]
[1756996569393,8.30573791,206.39,206.33,0.03458609]
[1756996569695,13.68361337,206.39,206.33,0.03458609]
[1756996570499,4.73573791,206.35,206.21,7.79]
[1756996570701,3.53,206.33,206.21,7.79]
[1756996571700,0.03481271,206.29,206.21,7.79]
[1756996572499,0.03481271,206.29,206.23,4.73573791]
[1756996572899,0.03481271,206.29,206.21,7.84]
[1756996573298,3.56,206.31,206.21,7.84]
[1756996573505,0.03665455,206.27,206.21,7.84]
[1756996577805,0.03665455,206.27,206.23,4.73573791]
[1756996578111,0.03665455,206.27,206.18,12.2039]
[1756996578300,0.03665455,206.27,206.2,4.73573791]
[1756996578506,0.03665455,206.27,206.21,7.84]
[1756996581005,0.03665455,206.27,206.17,7.84]
[1756996581404,1.89691563,206.25,206.18,1.89691563]
[1756996581805,1.93357018,206.27,206.2,1.89691563]
[1756996583414,1.93357018,206.27,206.18,1.89691563]
[1756996583612,0.03665455,206.27,206.19,7.84]
[1756996583808,3.56,206.26,206.14,122.16]
[1756996584003,3.56,206.26,206.21,1.89691563]
[1756996584304,5.37787546,206.31,206.23,1.89691563]
[1756996584305,1.89691563,206.3,206.23,1.89691563]
[1756996584507,0.03377688,206.26,206.23,9.73691563]
[1756996584712,1.93069251,206.26,206.19,1.89691563]
[1756996586714,0.03377688,206.26,206.22,7.84]
[1756996587116,3.59377688,206.26,206.22,7.84]
[1756996587615,0.03377688,206.26,206.22,7.84]
[1756996587816,0.03377688,206.26,206.23,1.89691563]
[1756996588012,0.03377688,206.26,206.24,7.84]
[1756996588210,0.03377688,206.26,206.23,1.89691563]
[1756996588413,0.03377688,206.26,206.24,7.84]
[1756996588613,0.03377688,206.26,206.23,1.89691563]
[1756996588816,0.03377688,206.26,206.24,7.84]
[1756996589117,1.89691563,206.25,206.14,7.84]
[1756996589315,5.45691563,206.25,206.18,1.89691563]
[1756996589816,0.03521719,206.24,206.21,7.84]
[1756996590113,0.03521719,206.24,206.2,1.89691563]
[1756996590319,0.03521719,206.24,206.23,7.84]
[1756996591113,3.56,206.34,206.23,8.32]
[1756996591320,1.89691563,206.37,206.3,9.73691563]
[1756996591615,5.49691563,206.39,206.32,1.89691563]
[1756996591818,3.6,206.39,206.32,1.89691563]
[1756996592214,3.6,206.39,206.33,0.03618799]
[1756996592617,3.6,206.39,206.34,1.89691563]
[1756996592815,3.6,206.39,206.34,9.73691563]
[1756996593010,3.6,206.39,206.34,7.84]
[1756996593217,5.37787546,206.42,206.34,7.84]
[1756996593218,3.6,206.4,206.34,9.73691563]
[1756996593517,3.6,206.4,206.33,0.03618799]
[1756996593518,1.89691563,206.39,206.33,0.03618799]
[1756996593722,1.89691563,206.37,206.33,0.03618799]
[1756996594110,3.6,206.36,206.33,0.03618799]
[1756996594313,1.89691563,206.37,206.33,0.03618799]
[1756996594517,3.6,206.36,206.33,0.03618799]
[1756996595117,10.87479109,206.4,206.33,1.93310362]
[1756996595310,3.6,206.4,206.35,1.89691563]
[1756996595509,5.37787546,206.42,206.35,1.89691563]
[1756996595510,10.87479109,206.42,206.35,1.89691563]
[1756996595713,10.87479109,206.42,206.35,1.93355062]
[1756996595919,8.97787546,206.42,206.35,1.93355062]
[1756996596218,1.89691563,206.41,206.35,1.93355062]
[1756996596620,3.6,206.42,206.35,1.93355062]
[1756996596811,10.87479109,206.46,206.39,1.89691563]
[1756996597120,5.49691563,206.46,206.39,1.89691563]
[1756996597621,3.6,206.46,206.4,0.03443505]
[1756996598520,5.37787546,206.49,206.41,7.84]
[1756996599020,5.37787546,206.49,206.4,0.03443505]
[1756996599220,3.6,206.48,206.4,0.03443505]
[1756996599613,8.97787546,206.48,206.4,0.03443505]
[1756996600012,3.6,206.48,206.4,0.03443505]
[1756996603720,3.6,206.48,206.41,7.87]
[1756996603923,0.8433297,206.51,206.41,7.87]
[1756996604221,3.57,206.52,206.41,7.87]
[1756996604421,3.57,206.52,206.42,7.87]
[1756996604926,3.57,206.52,206.45,0.03214112]
[1756996606223,122.06,206.6,206.45,7.90214112]
[1756996606422,4.73222801,206.57,206.45,7.90214112]
[1756996606626,3.57,206.55,206.45,7.87]
[1756996606928,3.57,206.56,206.41,12.60222801]
[1756996607131,124.84312538,206.57,206.41,12.60222801]
[1756996607322,3.57,206.56,206.46,7.90196629]
[1756996607523,125.61,206.56,206.46,7.90196629]
[1756996608930,3.57,206.56,206.46,7.90196629]
[1756996613428,3.57,206.57,206.46,0.03196629]
[1756996614328,122.02,206.58,206.46,7.90196629]
[1756996614725,3.57,206.57,206.46,7.90196629]
[1756996614921,122.02,206.58,206.46,7.90196629]
[1756996615227,3.57,206.57,206.46,7.90196629]
[1756996615428,122.0,206.56,206.46,7.90196629]
[1756996615629,122.0,206.56,206.46,7.87]
[1756996615828,3.57,206.57,206.49,0.03346057]
[1756996616037,78.94,206.56,206.49,0.03346057]
[1756996616733,125.55,206.57,206.49,0.03346057]
[1756996617133,3.57,206.57,206.49,0.03346057]
[1756996619729,2.95518782,206.56,206.49,0.03346057]
[1756996621430,3.57,206.57,206.49,7.90346057]
[1756996621830,3.57,206.57,206.49,0.03346057]
[1756996623127,124.91518782,206.59,206.49,0.03346057]
[1756996623128,3.57,206.55,206.49,0.03346057]
[1756996624631,6.52518782,206.55,206.49,0.03346057]
[1756996624830,128.46518782,206.55,206.49,0.03346057]
[1756996625328,6.52518782,206.55,206.49,0.03346057]
[1756996625528,3.57,206.55,206.49,0.03346057]
[1756996627531,2.95518782,206.58,206.49,0.03346057]
[1756996627932,3.57,206.59,206.49,0.03346057]
[1756996628235,3.57,206.59,206.5,7.87]
[1756996629438,3.57,206.53,206.49,0.03346057]
[1756996629939,2.95518782,206.54,206.49,0.03346057]
[1756996630139,3.57,206.53,206.49,0.03346057]
[1756996630336,3.57,206.5,206.49,0.03346057]
[1756996630935,3.57,206.49,206.38,7.87]
[1756996631142,2.95518782,206.47,206.38,7.87]
[1756996631339,3.57,206.48,206.38,7.87]
[1756996632441,0.03353872,206.45,206.38,7.87]
[1756996633037,0.03353872,206.45,206.33,312.14]
[1756996633341,0.03353872,206.45,206.44,7.89]
[1756996633542,3.59,206.56,206.44,7.89]
[1756996633729,3.59,206.56,206.48,7.89]
[1756996634743,3.59,206.56,206.5,0.03709692]
[1756996636138,3.62,206.6,206.51,7.89]
[1756996638838,3.61,206.64,206.51,7.89]
[1756996639447,3.61,206.64,206.55,7.92543228]
[1756996642046,3.61,206.68,206.55,7.92543228]
[1756996642347,3.61,206.68,206.55,7.89]
[1756996642844,3.61,206.68,206.59,7.92554189]
[1756996644246,9.83038847,206.72,206.59,7.92554189]
[1756996644648,4.45251301,206.72,206.59,7.89]
[1756996644847,4.45251301,206.72,206.63,0.03711039]
[1756996645046,4.45251301,206.72,206.63,7.92711039]
[1756996649846,8.98787546,206.71,206.63,0.03711039]
[1756996650041,11.29164545,206.69,206.63,0.03711039]
[1756996650247,16.66952091,206.69,206.63,0.03711039]
[1756996650445,5.37787546,206.68,206.63,0.03711039]
[1756996650645,121.82,206.67,206.63,0.03711039]
[1756996650847,3.61,206.67,206.63,0.03711039]
[1756996651050,127.19787546,206.68,206.63,0.03711039]
[1756996651252,121.82,206.68,206.63,0.03711039]
[1756996651553,11.29164545,206.69,206.63,0.03711039]
[1756996651757,3.61,206.67,206.63,0.03711039]
[1756996652850,3.61,206.67,206.63,7.92711039]
[1756996653750,4.45251301,206.72,206.63,0.03711039]
[1756996653953,126.25251301,206.72,206.63,0.03711039]
[1756996654145,3.61,206.72,206.64,7.89]
[1756996655453,121.8,206.74,206.64,7.89]
[1756996655660,125.41,206.74,206.64,7.89]
[1756996655851,5.37787546,206.76,206.64,7.89]
[1756996656058,311.96,206.78,206.64,7.89]
[1756996656661,311.96,206.78,206.69,0.03563611]
[1756996657156,3.61,206.79,206.69,0.03563611]
[1756996657363,3.61,206.79,206.7,7.89]
[1756996657657,5.37787546,206.84,206.7,7.89]
[1756996657658,4.45205432,206.86,206.7,7.89]
[1756996657958,3.61,206.86,206.7,7.89]
[1756996658155,3.61,206.86,206.71,54.66]
[1756996658359,3.61,206.86,206.76,0.03641603]
[1756996661065,3.61,206.84,206.76,0.03641603]
[1756996661856,3.61,206.82,206.76,0.03641603]
[1756996662462,101.19,206.82,206.76,0.03641603]
[1756996666063,3.58,206.8,206.76,0.03641603]
[1756996666368,121.74,206.81,206.76,0.03641603]
[1756996666772,125.32,206.81,206.76,0.03641603]
[1756996667065,3.58,206.81,206.76,0.03641603]
[1756996667366,3.58,206.85,206.77,7.51]
[1756996668167,3.58,206.85,206.79,0.03348215]
[1756996671172,7.68164545,206.84,206.79,0.03348215]
[1756996671466,3.58,206.8,206.79,0.03348215]
[1756996671769,3.58,206.8,206.73,7.51]
[1756996672871,0.03717609,206.79,206.73,7.51]
[1756996673269,0.03717609,206.79,206.65,7.51]
[1756996673670,3.58,206.8,206.65,7.51]
[1756996673867,0.03350881,206.74,206.65,7.51]
[1756996674265,0.03350881,206.74,206.67,7.51]
[1756996676075,0.03350881,206.74,206.7,7.51]
[1756996676273,3.58,206.84,206.7,7.51]
[1756996677069,3.58,206.84,206.71,7.51]
[1756996677465,3.62,206.82,206.75,0.03249848]
[1756996677771,3.62,206.82,206.71,7.51]
[1756996678163,3.62,206.82,206.76,0.03286374]
[1756996682372,4.71887413,206.85,206.76,0.03286374]
[1756996682576,3.62,206.86,206.76,0.03286374]
[1756996683480,1.88608948,206.84,206.77,1.88608948]
[1756996683779,1.88608948,206.84,206.76,0.03286374]
[1756996683976,1.88608948,206.84,206.78,7.51]
[1756996684680,3.62,206.86,206.78,7.51]
[1756996684872,1.88608948,206.84,206.78,9.39608948]
[1756996685377,1.88608948,206.84,206.78,7.51]
[1756996689370,3.62,206.86,206.78,7.51]
[1756996689571,1.88608948,206.84,206.78,7.51]
[1756996689775,1.88608948,206.82,206.76,0.03286374]
[1756996690082,1.88608948,206.82,206.75,7.51]
[1756996690281,1.88608948,206.82,206.76,1.88608948]
[1756996690581,1.88608948,206.82,206.77,0.03704138]
[1756996690782,1.88608948,206.82,206.78,7.51]
[1756996691185,1.88608948,206.83,206.77,0.03704138]
[1756996691372,1.88608948,206.83,206.77,7.54704138]
[1756996693081,1.88608948,206.84,206.77,7.54704138]
[1756996693878,1.88608948,206.82,206.77,7.54704138]
[1756996694178,3.63,206.86,206.77,0.03704138]
[1756996694383,1.88608948,206.84,206.78,7.43]
[1756996694882,1.88608948,206.82,206.78,7.43]
[1756996695479,3.63,206.86,206.78,7.43]
[1756996695685,1.88608948,206.83,206.77,0.03704138]
[1756996695886,1.88608948,206.83,206.78,7.43]
[1756996696183,1.88608948,206.83,206.77,7.46704138]
[1756996696383,3.63,206.86,206.77,7.46704138]
[1756996696592,1.88608948,206.83,206.77,7.46704138]
[1756996696992,1.88608948,206.81,206.77,7.46704138]
[1756996697590,1.88608948,206.81,206.78,7.43]
[1756996697790,3.61,206.83,206.78,7.43]
[1756996697992,1.88608948,206.81,206.78,7.43]
[1756996699594,1.88608948,206.83,206.77,0.03704138]
[1756996699998,1.88608948,206.83,206.78,7.43]
[1756996700395,5.37787546,206.85,206.77,0.03704138]
[1756996700596,1.88608948,206.84,206.78,7.43]
[1756996701595,1.88608948,206.84,206.78,9.31608948]
[1756996701995,7.26396494,206.86,206.78,7.43]
[1756996702299,7.26396494,206.86,206.78,9.31608948]
[1756996703198,5.37787546,206.86,206.78,9.31608948]
[1756996703398,1.88608948,206.85,206.78,9.31608948]
[1756996703599,1.88608948,206.85,206.78,7.43]
[1756996703796,10.87396494,206.85,206.78,7.43]
[1756996704195,5.49608948,206.83,206.78,7.43]
[1756996704401,5.49608948,206.83,206.77,9.35313086]
[1756996704597,1.88608948,206.83,206.77,9.35313086]
[1756996704798,1.88608948,206.84,206.77,9.35313086]
[1756996705601,1.88608948,206.84,206.78,7.43]
[1756996706202,5.37787546,206.86,206.78,7.43]
[1756996706401,1.88608948,206.84,206.78,7.43]
[1756996707696,1.88608948,206.84,206.79,1.88608948]
[1756996708107,1.88608948,206.84,206.8,7.43]
[1756996708901,1.88608948,206.84,206.79,1.88608948]
[1756996709201,1.88608948,206.84,206.8,7.43]
[1756996709389,1.88608948,206.84,206.77,0.03704138]
[1756996709593,1.88608948,206.84,206.78,7.43]
[1756996709792,5.37787546,206.85,206.78,9.31608948]
[1756996710200,5.37787546,206.86,206.79,7.43]
[1756996710399,7.26396494,206.86,206.79,7.43]
[1756996710898,1.88608948,206.84,206.79,7.43]
[1756996711200,1.88608948,206.84,206.78,7.43]
[1756996711397,7.26396494,206.86,206.8,7.43]
[1756996712400,5.37787546,206.85,206.8,7.43]
[1756996712597,7.26396494,206.86,206.8,7.43]
[1756996712791,5.37787546,206.85,206.79,1.88608948]
[1756996713602,5.37787546,206.85,206.8,7.43]
[1756996713801,5.37787546,206.85,206.79,1.88608948]
[1756996714404,3.61,206.87,206.8,7.43]
[1756996714405,5.37787546,206.87,206.8,7.43]
[1756996714603,7.26396494,206.87,206.8,7.43]
[1756996715003,7.26396494,206.87,206.81,0.03568629]
[1756996715600,5.37787546,206.87,206.82,7.43]